Cogmind - Beta 16 @@@ ROGUE MODE // 2025.11.18 @ 04:13:14 Player: Demo Result: Destroyed by P-80 Master with Gamma Rifle Performance ------------- Evolutions (8) 4000 Regions Visited (19) 3800 Robots Destroyed (230) 1150 Value Destroyed (12262) 12262 Prototype IDs (70) 1400 Alien Tech Used (0) 0 Bonus (7100) 7100 TOTAL SCORE: 29712 Bonus ------- High Alert Combat Kills 3747 Follower Combat Kills 54 Entered DSFs 1000 Registered with UFD 300 Met Optimus in HQ 500 Met Warlord at Base 500 MAIN.C Attacked Warlord 500 Warlord Defense Kills 172 Scanned by Researcher 500 Friendly Fire -173 Cogmind --------- Core Integrity 0/1450 Matter 19/300 Energy 82/100 System Corruption 36% Temperature Cool (0) Movement Walking (120) Location -2/Protoforge Parts ------- > --- POWER (2) -------- (None) > --- PROPULSION (6) --- Myomer Leg > --- UTILITY (11) ----- Large Storage Unit Advanced Targeting Computer Graphene Brace > --- WEAPON (4) ------- Heavy Laser > --- INVENTORY (15) --- Advanced Cryofiber Web Experimental Heat Sink Experimental Heat Sink Experimental Cloaking Device Subatomic Replicator Peak State ------------ > --- POWER ------------ Micro Antimatter Reactor Light Quantum Reactor > --- PROPULSION ------- Biometal Leg Biometal Leg Biometal Leg Centrium Leg Centrium Leg Centrium Leg > --- UTILITY ---------- Advanced Power Amplifier Experimental Cooling System Experimental Cooling System Experimental Cooling System Advanced Targeting Computer Advanced Target Analyzer Experimental Reaction Control System Advanced Phase Shifter Experimental Cloaking Device Graphene Brace System Purifier > --- WEAPON ----------- Enhanced Quantum Rifle Nova Cannon Nova Cannon Enhanced Nova Cannon > --- INVENTORY -------- Light Quantum Reactor Long-range Tractor Beam Enhanced Coil Gun Tactical Quantum Warhead Tactical Quantum Warhead [Rating: 192] Favorites ----------- Power Light Quantum Reactor Engine Subdweller Power Source Power Core Light Nuclear Core Reactor Light Quantum Reactor Propulsion Biometal Leg Treads Improved Treads Leg Biometal Leg Wheel Compact Wheel Flight Unit VTOL Module Utility Improved Melee Analysis Suite Device Experimental Cooling System Storage High-capacity Storage Unit Processor Improved Melee Analysis Suite Protection Improved Medium Armor Plating Weapon Nova Cannon Energy Gun Enhanced Quantum Rifle Energy Cannon Nova Cannon Ballistic Gun Subdweller Machine Gun Ballistic Cannon Enhanced Hardcell Cannon Launcher Tactical Quantum Warhead Special Weapon Stasis Beam Slashing Weapon Greatsword Piercing Weapon Vortex Lance Build | -11 -10 -10 -10 -9 -9 -6 -6 -5 -5 -5 -5 -4 -4 -4 -3 -3 -2 -2 -2 ------- Run | Yrd Mat Min Sub Rec Scr Fac DSF Fac Upp Upp War Pro Fac DSF Res Tes Res Qua Frg Slots Evolved 16 | . . . . . . 8 . 2 . . . . 2 . 2 . 2 . . Power 1 | . . . . . . 1 . . . . . . . . . . . . . Propulsion 4 | . . . . . . 2 . 1 . . . . . . 1 . . . . Utility 9 | . . . . . . 5 . 1 . . . . 2 . . . 1 . . Weapon 2 | . . . . . . . . . . . . . . . 1 . 1 . . Parts Attached 260 | 9 . 2 11 . 9 5 12 2 8 11 28 6 . 12 4 10 84 20 27 Power 35 | 1 . . 1 . 1 . 2 . 1 2 2 1 . 2 1 1 14 4 2 Engine 6 | 1 . . 1 . 1 . 1 . 1 . . . . . . . 1 . . Core 7 | . . . . . . . 1 . . 2 . 1 . 2 . . 1 . . Reactor 22 | . . . . . . . . . . . 2 . . . 1 1 12 4 2 Propulsion 79 | 3 . . 2 . 3 2 4 . 3 4 15 1 . 7 2 3 16 5 9 Treads 9 | 2 . . 1 . . . . . 1 3 1 . . . . . 1 . . Leg 62 | . . . . . . . 4 . 2 . 14 1 . 7 2 3 15 5 9 Wheel 7 | 1 . . 1 . 2 2 . . . 1 . . . . . . . . . Hover . | . . . . . . . . . . . . . . . . . . . . Flight 1 | . . . . . 1 . . . . . . . . . . . . . . Utility 85 | 2 . . 3 . 2 3 6 1 3 3 6 3 . 2 1 . 33 9 8 Device 47 | 1 . . . . . 2 . 1 1 1 3 3 . . 1 . 25 5 4 Storage 6 | 1 . . 1 . 1 . . . . . 1 . . . . . 1 1 . Processor 18 | . . . . . . 1 6 . . 1 1 . . . . . 6 3 . Hackware . | . . . . . . . . . . . . . . . . . . . . Protection 14 | . . . 2 . 1 . . . 2 1 1 . . 2 . . 1 . 4 Artifact . | . . . . . . . . . . . . . . . . . . . . Weapon 61 | 3 . 2 5 . 3 . . 1 1 2 5 1 . 1 . 6 21 2 8 Energy Gun 24 | 1 . 1 2 . 1 . . . . . 3 . . . . 5 4 . 7 Energy Cannon 6 | . . . . . . . . . . . . . . . . . 5 1 . Ballistic Gun 14 | 2 . 1 3 . 1 . . . . . . . . . . . 7 . . Ballistic Cannon 5 | . . . . . . . . . . . . 1 . . . . 4 . . Launcher 4 | . . . . . . . . . 1 . . . . 1 . . . 1 1 Special Weapon 2 | . . . . . . . . . . . . . . . . 1 1 . . Impact Weapon . | . . . . . . . . . . . . . . . . . . . . Slashing Weapon 4 | . . . . . 1 . . 1 . 2 . . . . . . . . . Piercing Weapon 2 | . . . . . . . . . . . 2 . . . . . . . . Special Melee Weapon . | . . . . . . . . . . . . . . . . . . . . Unidentified Prototypes 7 | . . . . . . . . . . . 2 . . . . . 1 2 2 Corrupted Parts 1 | . . . . . . . . . . . . 1 . . . . . . . System Corruption 10 | . . . . . . . . . . . . 10 . . . . . . . Parts Lost 140 | . . . 7 . . . 5 . 5 12 12 5 . 2 . 2 45 6 39 Power 19 | . . . 1 . . . 1 . . 2 2 . . 1 . . 7 2 3 Propulsion 43 | . . . 3 . . . 2 . 3 4 5 2 . . . 1 11 1 11 Utility 53 | . . . 3 . . . 1 . 2 5 4 2 . 1 . . 18 2 15 Weapon 25 | . . . . . . . 1 . . 1 1 1 . . . 1 9 1 10 Highest Loss Streak 30 | . . . 2 . . . 3 . 4 9 12 3 . 2 . 1 15 5 30 To Critical Strikes 1 | . . . . . . . 1 . . . . . . . . . . . . Average Backups 12 | . 2 7 4 4 9 11 13 14 14 14 15 12 12 14 16 16 13 11 14 Power . | . . . . . . . . . . . . 2 2 1 1 1 1 1 . Propulsion 2 | . 2 2 . . 2 1 1 2 . 2 3 2 2 3 5 4 2 1 2 Utility 4 | . . 4 2 2 3 4 5 7 8 7 4 3 3 4 5 7 5 4 5 Weapon 3 | . . 1 2 2 3 5 5 4 4 3 4 4 4 4 3 2 3 3 4 Tool/Special . | . . . . . . . . . . . . . . . . . . . . Unused Backups 54 | . . 1 7 . 6 . 5 . . 4 2 . . 1 1 1 8 10 8 Power 6 | . . . . . . . . . . . . . . . . . 2 4 . Propulsion 12 | . . . . . 2 . 2 . . 1 . . . 1 . . 1 4 1 Utility 25 | . . 1 6 . 1 . 2 . . 3 . . . . 1 1 3 2 5 Weapon 8 | . . . 1 . 3 . 1 . . . . . . . . . 2 . 1 Tool/Special 3 | . . . . . . . . . . . 2 . . . . . . . 1 Average Slot Usage (%) 84 | . 100 100 73 . 51 65 84 81 87 79 92 90 84 86 80 86 91 95 89 Engine 3 | . 14 14 11 . 6 6 6 5 7 1 1 . . . . . . . . Core 1 | . . . . . . . 3 . . 6 7 1 5 5 4 2 . . . Reactor 3 | . . . . . . . . . . . 1 5 5 2 3 6 6 7 7 Treads 4 | . 14 14 17 . . . . . . 9 5 . . . . . . 2 . Leg 14 | . . . . . . . 3 23 15 1 14 26 21 25 27 28 24 19 20 Wheel 6 | . 14 14 3 . 24 25 21 . 10 14 7 . . . . . . . . Device 13 | . 14 14 . . . 8 6 4 4 . 5 14 15 15 14 14 24 31 22 Storage 4 | . 14 14 . . 7 6 6 5 5 5 7 5 5 5 4 4 2 3 4 Processor 10 | . . . . . . 4 22 29 26 17 18 17 15 12 9 9 12 11 12 Protection 5 | . . . 11 . 5 6 6 5 5 11 8 5 5 9 9 9 1 . 4 Energy Gun 4 | . . 9 8 . . . . . . . 8 . . . . 2 3 3 11 Energy Cannon 2 | . . . . . . . . . . . . . . . . . 3 13 4 Ballistic Gun 3 | . 28 18 19 . . . . . . . . . . . . . 2 . . Ballistic Cannon 1 | . . . . . . . . . . . . 4 5 2 . . 5 . . Slashing Weapon 1 | . . . . . 5 6 5 5 4 4 . . . 2 4 2 . . . Peak Build Rating 192 | 7 7 12 15 2 22 32 58 63 66 64 100 109 108 138 141 150 192 190 188 Average Rating 95 | 5 7 10 12 2 11 28 44 62 60 51 68 104 108 122 132 141 163 184 168 On Entrance 70 | . 7 7 12 2 2 22 32 50 63 64 53 95 108 108 121 141 141 190 182 Avg Prop Armor Cover (%) 10 | 14 11 11 9 . 18 . . . 13 10 9 . . . . 1 7 9 13 Naked Turns 169 | . . . 5 29 135 . . . . . . . . . . . . . . Heaviest Build 148 | 15 15 18 32 . 57 59 65 62 95 95 88 98 84 115 116 116 148 118 111 Greatest Support 176 | 40 10 10 40 3 32 64 72 72 54 42 105 110 90 135 142 149 174 174 176 Greatest Overweight (x) 3 | 1 1 1 2 . 1 . 1 . 3 2 2 1 . . . . 1 1 2 Average Overweight (x) . | . 1 1 . . . . . . 1 1 . . . . . . . . . Largest Inventory Capacity 20 | 8 8 8 15 5 20 20 20 20 20 20 20 20 20 20 20 20 20 15 15 Average Capacity 15 | 7 8 8 5 5 12 20 20 20 20 20 20 20 20 20 20 20 15 12 15 Most Carried 20 | 2 5 8 10 5 20 19 20 19 20 20 20 20 16 20 20 20 20 15 15 Average Carried 14 | . 2 7 5 5 11 16 19 18 18 18 19 16 16 19 19 19 14 11 13 Final Capacity 20 | 8 8 8 5 5 20 20 20 20 20 20 20 20 20 20 20 20 5 15 15 Final Carried 20 | 2 5 8 5 5 20 17 19 19 20 20 20 16 16 20 20 20 5 15 5 Class Distribution -------------------- 26% | Scavenger-Gunner 19% | Mutant 16% | Scavenger-Mutant 13% | Scavenger-Gladiator 7% | Subdweller-Mutant 6% | Gladiator 4% | Scavenger-Tank Dominant Class ---------------- Mutant | -10/Materials Mutant | -10/Mines Subdweller-Mutant | -10/Subcaves Mutant | -9/Recycling Mutant | -9/Scraptown Derelict-Gladiator | -6/Factory Derelict-Gladiator | -6/DSF Scavenger-Gladiator | -5/Factory Scavenger-Gladiator | -5/Upper Caves Scavenger-Gladiator | -5/Upper Caves Scavenger-Mutant | -5/Warlord Scavenger-Mutant | -4/Proximity Caves Scavenger-Mutant | -4/Factory Gladiator | -4/DSF Gladiator | -3/Research Scavenger-Gladiator | -3/Testing Scavenger-Gunner | -2/Research Scavenger-Gunner | -2/Quarantine Scavenger-Gunner | -2/Protoforge Resources | -11 -10 -10 -10 -9 -9 -6 -6 -5 -5 -5 -5 -4 -4 -4 -3 -3 -2 -2 -2 ----------- Run | Yrd Mat Min Sub Rec Scr Fac DSF Fac Upp Upp War Pro Fac DSF Res Tes Res Qua Frg Matter Collected 7347 | 302 41 207 243 . 154 . 299 . 302 247 440 122 . 132 61 315 3127 770 585 Remotely 2880 | . . . . . . . . . . . . . . . . . 2273 478 129 Salvage Created 10549 | 131 60 120 268 . . . 379 . 458 479 75 337 . 431 . 1303 3437 1115 1956 Parts 530 | 11 10 11 25 . . . 24 . 16 17 1 11 . 20 . 66 184 49 85 Haulers Intercepted 7 | . . . . . . . . . . . . . . 2 . 2 2 1 . Recyclers Shooed 1 | . . . . . . . . . . . . . . . . . 1 . . Parts Field Recycled . | . . . . . . . . . . . . . . . . . . . . Retrieved Matter . | . . . . . . . . . . . . . . . . . . . . Parts Self-Destructed 65 | . . . 18 . . . . . 18 19 . 10 . . . . . . . Prevented . | . . . . . . . . . . . . . . . . . . . . Parts Restored . | . . . . . . . . . . . . . . . . . . . . Kills | -11 -10 -10 -10 -9 -9 -6 -6 -5 -5 -5 -5 -4 -4 -4 -3 -3 -2 -2 -2 ------- Run | Yrd Mat Min Sub Rec Scr Fac DSF Fac Upp Upp War Pro Fac DSF Res Tes Res Qua Frg Combat Hostiles Destroyed 174 | . 3 4 10 . . . 6 . 10 11 1 8 . 7 . 16 55 18 25 Melee 48 | . . . . . . . 6 . 6 6 . 8 . 4 . 14 4 . . Guns 41 | . 3 4 10 . . . . . . . 1 . . . . . 12 . 11 Cannons 53 | . . . . . . . . . . . . . . . . . 30 12 11 AOE 28 | . . . . . . . . . 4 5 . . . 3 . 2 7 5 2 Classes Destroyed 26 | 2 2 1 2 . . . 1 . 3 1 2 . . 1 . 4 3 . 4 Worker 10 | . . . . . . . . . . . . . . . . 2 5 1 2 Builder 13 | . . . . . . . . . . . . . . . . 2 7 2 2 Tunneler 4 | 4 . . . . . . . . . . . . . . . . . . . Hauler 7 | . . . . . . . . . . . . . . 2 . 2 2 1 . Recycler 6 | 1 . . . . . . . . . . . . . . . . 2 3 . Minesweeper 1 | . . . . . . . . . 1 . . . . . . . . . . Mechanic 1 | . . . . . . . . . . . . . . . . . . . 1 Operator 2 | . 1 . . . . . . . . . . . . . . . . 1 . Drone 3 | . . . . . . . . . . . . . . . . . . . 3 Watcher 6 | . . . . . . . . . . . . . . . . 2 2 . 2 Swarmer 43 | . 3 2 4 . . . . . 5 5 . 4 . 4 . . 12 4 . Saboteur 1 | . . . . . . . . . . . . . . . . . 1 . . Grunt 36 | . . 2 . . . . . . 3 2 . . . . . 8 9 4 8 Brawler 6 | . . . . . . . . . 1 2 . 1 . . . . 2 . . Duelist 4 | . . . . . . . . . . 1 . 1 . . . . . 2 . Researcher 4 | . . . . . . . . . . . . . . . . 2 . 2 . Sentry 11 | . . . 1 . . . 1 . 1 1 . 1 . . . . 4 . 2 Specialist 10 | . . . . . . . 5 . . . . . . 3 . . 2 . . Hunter 15 | . . . . . . . . . . . . . . . . . 10 3 2 Programmer 28 | . . . . . . . . . . . . . . . . 8 14 5 1 Q-Series 2 | . . . . . . . . . . . . . . . . . . . 2 Behemoth 2 | . . . . . . . . . . . 1 1 . . . . . . . Hotshot 6 | . . . . . . . . . . . . . . . . . . . 6 Striker 1 | . . . . . . . . . . . . . . . . . 1 . . Alpha 7 2 | . . . . . . . . . . . . . . . . . . . 2 Subdweller 5 | . . . 5 . . . . . . . . . . . . . . . . Samaritan 1 | . . . . . . . . . 1 . . . . . . . . . . Wizard 1 | . . . . . . . . . . . 1 . . . . . . . . Best Kill Streak 10 | 5 2 2 4 . . . 4 . 5 5 1 5 . 7 . 4 10 9 5 Combat Bots Only 7 | . 2 2 4 . . . 4 . 5 5 1 5 . 6 . 3 6 7 4 Max Kills in Single Turn 7 | 1 1 1 1 . . . 1 . 4 2 1 1 . 2 . 2 3 7 3 Gunslinging . | . . . . . . . . . . . . . . . . . . . . Exploded 4 | . . . . . . . . . 4 2 . . . 2 . 2 1 4 1 Melee 1 | . . . . . . . 1 . 1 1 . 1 . 1 . 1 1 . . Uniques/NPCs Destroyed . | . . . . . . . . . . . . . . . . . . . . Combat | -11 -10 -10 -10 -9 -9 -6 -6 -5 -5 -5 -5 -4 -4 -4 -3 -3 -2 -2 -2 -------- Run | Yrd Mat Min Sub Rec Scr Fac DSF Fac Upp Upp War Pro Fac DSF Res Tes Res Qua Frg Hostile Shots Fired 1615 | . 26 20 115 . . . 81 1 35 66 54 54 . 16 11 64 572 157 343 Missed 505 | . 10 7 42 . . . 34 1 13 13 19 18 . 3 6 13 199 46 81 Deflected 10 | . . . . . . . . . . . . . . . . . . . 10 Hits 1110 | . 16 13 73 . . . 47 . 22 53 35 36 . 13 5 51 373 111 262 Melee 29 | . . . . . . . . . 1 9 4 1 . . . . 5 9 . Projectile 1081 | . 16 13 73 . . . 47 . 21 44 31 35 . 13 5 51 368 102 262 AOE 6 | . . . . . . . . . . . 1 . . . 1 . . . 4 Critical Strikes 60 | . . . 1 . . . 1 . . 4 2 . . . . 6 18 7 21 Actively Blocked 43 | . . . . . . . . . . . . . . . . . 15 7 21 Part Disruptions 1 | . . . . . . . . . . . . . . . . . 1 . . Damage Taken 24948 | . 136 113 1081 . . . 742 . 388 1385 1547 839 . 226 202 1140 8218 2348 6583 Core 2390 | . . 27 145 . . . 172 . 39 222 144 81 . . . 102 593 183 682 Absorbed by Shields 380 | . . . . . . . . . . . . . . . 74 121 185 . . Reduced by Siege Mode 197 | . . . . . . . . . . . . . . . . . . 197 . Redirected to Shielding 301 | . . . . . . . . . . . . . . . . . . . 301 Ignored by Resistances 871 | . . . . . . . . . . 22 . . . . . . 259 . 590 Regen/Repaired (Parts) 583 | . . . . . . . . . . . 319 . . . . . . . 264 Core Remaining (%) 75 | 100 . . . . 31 . 79 . . . . 51 . 100 . 92 . . . Volleys Fired 394 | 13 12 17 52 . . . . . 2 3 15 . . 2 . 7 134 39 98 Largest 4 | 2 2 2 2 . . . . . 1 1 2 . . 1 . 1 4 4 4 Hottest 466 | 40 40 40 95 . . . . . 40 40 90 . . 33 . 40 411 466 418 Shots Fired 1054 | 26 24 22 104 . . . . . 2 3 18 . . 2 . 9 414 109 321 Gun 621 | 26 24 22 104 . . . . . . . 18 . . . . 2 177 19 229 Cannon 398 | . . . . . . . . . . . . . . . . . 228 85 85 Launcher 31 | . . . . . . . . . 2 3 . . . 2 . 5 7 5 7 Special 4 | . . . . . . . . . . . . . . . . 2 2 . . Kinetic 407 | 26 24 22 62 . . . . . 2 3 . . . . . 3 265 . . Thermal 600 | . . . 42 . . . . . . . . . . . . 1 139 104 314 Explosive 23 | . . . . . . . . . . . . . . 2 . 2 7 5 7 Electromagnetic 2 | . . . . . . . . . . . . . . . . 1 1 . . Entropic 18 | . . . . . . . . . . . 18 . . . . . . . . Robot Hit Streak 40 | 3 5 6 9 . . . . . 1 . 7 . . . . 2 15 40 31 Robot Miss Streak 7 | 3 5 2 3 . . . . . 1 . 1 . . 3 . 1 7 1 5 Penetration Max 1 | . . . . . . . . . . . 1 . . . . . 1 . . Secondary Targets 4 | . 1 . 2 . . . . . . . . . . . . . . . 1 Max Gunslinging Chain 1 | . 1 . 1 . . . . . . . . . . . . . . . 1 Shots Hit Robots 803 | 12 9 13 42 . . . 15 . 13 24 11 20 . 11 2 53 260 75 243 Core Hits 442 | 6 4 7 15 . . . 6 . 17 15 3 9 . 10 . 30 166 54 100 Critical Kills 4 | . . . 1 . . . . . . . . . . . . . 1 1 1 Critical Parts Destroyed 2 | . . . . . . . . . . . 2 . . . . . . . . Critical Strikes 64 | . . . 2 . . . 4 . 1 6 2 3 . 4 . 8 13 1 20 Burn 23 | . . . 1 . . . . . . . . . . . . . 3 . 19 Meltdown 3 | . . . . . . . . . . . . . . . . . 1 1 1 Destroy 1 | . . . 1 . . . . . . . . . . . . . . . . Blast 3 | . . . . . . . . . . . . . . . . . 3 . . Sever 18 | . . . . . . . 4 . 1 6 . . . 1 . 6 . . . Detonate 2 | . . . . . . . . . . . 2 . . . . . . . . Sunder 14 | . . . . . . . . . . . . 3 . 3 . 2 6 . . Melee Attacks 184 | . . . . . . . 16 . 13 26 1 22 . 12 3 72 19 . . Impact . | . . . . . . . . . . . . . . . . . . . . Slashing 105 | . . . . . . . 16 . 13 26 . . . 6 1 43 . . . Piercing . | . . . . . . . . . . . . . . . . . . . . Entropic 79 | . . . . . . . . . . . 1 22 . 6 2 29 19 . . Sneak Attacks 17 | . . . . . . . 1 . 3 . . . . 3 . 10 . . . Combat Hostiles 4 | . . . . . . . . . . . . . . . . 4 . . . Follow-up Attacks 7 | . . . . . . . . . . . . . . . . 7 . . . Damage Inflicted 36773 | 166 128 170 883 . . . 924 . 1159 1376 689 1714 . 1271 177 4279 11390 4924 7523 Guns 10155 | 166 128 170 883 . . . . . . . 525 . . . . 37 3159 472 4615 Cannons 9467 | . . . . . . . . . . . . . . . . . 5256 2341 1870 Explosions 6175 | . . . . . . . . . 350 233 164 . . 272 . 455 1571 2093 1037 Melee 10906 | . . . . . . . 921 . 809 1143 . 1714 . 999 177 3787 1356 . . Ramming 70 | . . . . . . . 3 . . . . . . . . . 48 18 1 Kinetic 7136 | 166 128 170 534 . . . . . 350 233 . . . . . 455 5100 . . Thermal 13126 | . . . 349 . . . . . . . 164 . . . . . 3315 2813 6485 Explosive 4856 | . . . . . . . . . . . . . . 272 . . 1454 2093 1037 Electromagnetic 154 | . . . . . . . . . . . . . . . . 37 117 . . Impact . | . . . . . . . . . . . . . . . . . . . . Slashing 5325 | . . . . . . . 921 . 809 1143 . . . 294 . 2158 . . . Piercing . | . . . . . . . . . . . . . . . . . . . . Entropic 6106 | . . . . . . . . . . . 525 1714 . 705 177 1629 1356 . . Highest Corruption 35 | . 2 2 2 2 . . . . 5 24 24 11 . . 3 15 33 21 35 Average Corruption 12 | . 1 2 2 2 . . . . 5 21 8 10 . . 2 7 16 19 22 Corruption Purged 15 | . . . . . . . . . . . . . . . . . 15 . . Corruption Blocked . | . . . . . . . . . . . . . . . . . . . . Effects 317 | . 3 8 15 1 . . . . 5 29 . 15 . . 2 27 93 48 71 Message Errors 73 | . 1 1 5 . . . . . 1 8 . 6 . . . 8 21 10 12 Matter Fused 63 | . 1 3 2 . . . . . 2 9 . 7 . . 1 4 14 8 12 Heat Flow Errors 34 | . 1 . 2 1 . . . . . 6 . . . . . 4 8 5 7 Energy Discharges 42 | . . 2 2 . . . . . 2 4 . . . . . 2 15 10 5 Parts Rejected 9 | . . . . . . . . . . . . . . . . 1 5 . 3 Parts Fused 3 | . . . . . . . . . . . . . . . . . 2 1 . Data Loss (minor) 33 | . . 1 2 . . . . . . 1 . 1 . . 1 4 11 6 6 Data Loss (major) 12 | . . 1 . . . . . . . 1 . . . . . 1 4 2 3 Misfires 11 | . . . 2 . . . . . . . . . . . . 2 4 . 3 Alerts 5 | . . . . . . . . . . . . . . . . 1 1 3 . Misdirections 6 | . . . . . . . . . . . . 1 . . . . 1 . 4 Weapon Failures 26 | . . . . . . . . . . . . . . . . . 7 3 16 Overload Shots . | . . . . . . . . . . . . . . . . . . . . Overflow Damage 1683 | . . . . . . . . . 34 . . 164 . 108 57 623 448 140 109 Projectiles 406 | . . . . . . . . . . . . . . . . . 319 38 49 Explosions 262 | . . . . . . . . . . . . . . . . . 100 102 60 Melee 1015 | . . . . . . . . . 34 . . 164 . 108 57 623 29 . . Knockbacks 41 | . . . . . . . . . . . . . . . . . 41 . . Impact . | . . . . . . . . . . . . . . . . . . . . Kinetic 39 | . . . . . . . . . . . . . . . . . 39 . . Secondary 2 | . . . . . . . . . . . . . . . . . 2 . . Self-Inflicted Damage 607 | . . . . . . . . . . 57 100 . . 33 . . 173 . 244 Shots 9 | . . . . . . . . . . 1 1 . . 1 . . 2 . 4 Rammed . | . . . . . . . . . . . . . . . . . . . . Targets Rammed 9 | . . . . . . . 1 . . . . . . . . . 5 1 2 Kicked 9 | . . . . . . . 1 . . . . . . . . . 5 1 2 Crushed . | . . . . . . . . . . . . . . . . . . . . Highest Temperature 405 | . 148 . 240 179 . . . . 12 260 19 . . . 7 405 373 294 164 Average Temperature 79 | . 85 . 102 91 . . . . 8 92 13 . . . 4 73 85 84 33 Received Heat Transfer 2469 | . . 12 270 . . . 129 . 45 225 66 63 . . . 138 477 54 990 Effects 4 | . . . 1 . . . . . . . . . . . . 2 1 . . Shutdowns 1 | . . . . . . . . . . . . . . . . 1 . . . Energy Bleed 1 | . . . 1 . . . . . . . . . . . . . . . . Matter Decay 1 | . . . . . . . . . . . . . . . . . 1 . . Short Circuit 1 | . . . . . . . . . . . . . . . . 1 . . . Siege Activations 1 | . . . . . . . . . . . . . . . . . . 1 . Total Turns 31 | . . . . . . . . . . . . . . . . . . 31 . Longest Duration 31 | . . . . . . . . . . . . . . . . . . 31 . Martial Activations . | . . . . . . . . . . . . . . . . . . . . Shielding Activations 7 | . . . . . . . . . . . . . . . . . . . 7 Total Turns 148 | . . . . . . . . . . . . . . . . . . . 148 Longest Duration 47 | . . . . . . . . . . . . . . . . . . . 47 Robots Disrupted 1 | . . . . . . . . . . . . . . . . 1 . . . Combat Hostiles . | . . . . . . . . . . . . . . . . . . . . Robots Corrupted . | . . . . . . . . . . . . . . . . . . . . Combat Hostiles . | . . . . . . . . . . . . . . . . . . . . Parts Fried . | . . . . . . . . . . . . . . . . . . . . Impact Corruptions . | . . . . . . . . . . . . . . . . . . . . Robots Melted 5 | . . . . . . . . . . . . . . . . . 2 1 2 Combat Hostiles 4 | . . . . . . . . . . . . . . . . . 2 1 1 Parts Melted 24 | . . . 3 . . . . . . . . . . . . . 3 7 11 Heat Transferred 16863 | . . . 631 . . . . . . . 100 . . . . . 3737 2590 9805 Parts Sabotaged 4 | . . . . . . . . . . . . . . . . . . 4 . Parts Stolen . | . . . . . . . . . . . . . . . . . . . . Parts Stripped . | . . . . . . . . . . . . . . . . . . . . Power Chain Reactions . | . . . . . . . . . . . . . . . . . . . . Alert | -11 -10 -10 -10 -9 -9 -6 -6 -5 -5 -5 -5 -4 -4 -4 -3 -3 -2 -2 -2 ------- Run | Yrd Mat Min Sub Rec Scr Fac DSF Fac Upp Upp War Pro Fac DSF Res Tes Res Qua Frg Maximum Alert Level 4 | . . . . . . . . . . . . . . 1 . 1 4 4 4 Low Security (%) 35 | 100 100 100 . 100 . 100 100 100 . . . . 100 54 100 95 4 . . Level 1 7 | . . . . . . . . . . . . . . 45 . 4 16 . . Level 2 6 | . . . . . . . . . . . . . . . . . 17 2 1 Level 3 30 | . . . . . . . . . . . . . . . . . 23 53 95 Level 4 20 | . . . . . . . . . . . . . . . . . 37 43 3 Level 5 . | . . . . . . . . . . . . . . . . . . . . High Security . | . . . . . . . . . . . . . . . . . . . . Max Security . | . . . . . . . . . . . . . . . . . . . . Peak Influence 1311 | 25 60 60 . 39 . . 121 63 . . . . 32 227 127 210 1311 1306 1259 Initial 733 | . . 5 . 39 . . . 63 . . . . 32 25 127 42 107 733 717 Average 573 | 5 25 15 . 35 . . 51 32 . . . . 32 136 103 89 815 1021 796 Influence Increases 6944 | 25 75 115 130 . . . 171 . 225 315 35 195 5 222 . 599 2306 1140 1386 Destroy 0b10 Robot/C 3440 | . 60 80 100 . . . 120 . 200 220 20 160 . 140 . 360 1140 400 440 Destroy 0b10 Robot/NC 280 | 25 5 . . . . . . . 5 . . . . 10 . 40 105 40 50 Destroy Leader 534 | . 10 20 . . . . 20 . 20 20 . 20 . 20 . 38 210 52 104 Allied During Kill 10 | . . . . . . . . . . . . . . . . . 3 . 7 Trap Triggered on 0b10 10 | . . . . . . . . . . . . . . . . . 10 . . Successful Hack 105 | . . . . . . . . . . . . . 5 . . 39 8 27 26 Disable Machine 390 | . . . . . . . . . . . . . . 15 . . 105 150 120 Anti-Garrison Action 200 | . . . . . . . . . . . . . . . . . 200 . . Destroy Structure 1585 | . . . . . . . 1 . . . . . . 22 . 62 435 456 609 Partial Spotted 15 | . . . . . . . . . . . . . . . . . 15 . . Lose Combat Pursuer 375 | . . 15 30 . . . 30 . . 75 15 15 . 15 . 60 75 15 30 Influence Decreases 5691 | 25 60 130 48 53 29 . 50 121 215 260 100 142 21 32 150 485 1192 1168 1410 Entered New Map 1591 | . . 10 . 43 29 . . 58 . 2 65 . 21 12 100 35 84 572 560 Time Decay 2768 | 25 60 120 28 10 . . . 63 185 218 27 122 . . 50 376 658 386 440 Lost Part 1108 | . . . 20 . . . 50 . 30 40 8 20 . 20 . 20 450 60 390 Lost Ally 20 | . . . . . . . . . . . . . . . . . . . 20 Purge Threat 204 | . . . . . . . . . . . . . . . . 54 . 150 . Squads Dispatched 38 | . . 1 . . . . 2 1 . . . . . 1 1 3 17 6 6 Investigation 4 | . . 1 . . . . . . . . . . . . . . 2 . 1 Extermination 14 | . . . . . . . . . . . . . . . . 2 7 2 3 Reinforcement 13 | . . . . . . . 2 1 . . . . . 1 1 1 4 2 1 Assault 7 | . . . . . . . . . . . . . . . . . 4 2 1 Garrison . | . . . . . . . . . . . . . . . . . . . . Intercept . | . . . . . . . . . . . . . . . . . . . . Searches Triggered . | . . . . . . . . . . . . . . . . . . . . Construction Impeded 1 | . . . . . . . . . . . . . . . . . . 1 . Haulers Reinforced 3 | . . . . . . . . . . . . . . . . 1 2 . . Active Scanning Responses . | . . . . . . . . . . . . . . . . . . . . Cargo Convoy Interrupts 1 | . . . . . . . . . . . . . . . . . 1 . . Stealth | -11 -10 -10 -10 -9 -9 -6 -6 -5 -5 -5 -5 -4 -4 -4 -3 -3 -2 -2 -2 --------- Run | Yrd Mat Min Sub Rec Scr Fac DSF Fac Upp Upp War Pro Fac DSF Res Tes Res Qua Frg Distress Signals 11 | . . . . . . . . 1 . . 1 . . . . . 7 1 1 Communications Jammed 29 | . . . . . . . . . . . . . . . . 7 22 . . Distress Signals 28 | . . . . . . . . . . . . . . . . 7 21 . . Times Spotted 293 | . 6 7 16 . . . 12 2 14 19 29 9 . 7 2 27 86 19 38 Peak Tracking Total 9 | . 4 3 6 . . . 5 2 5 5 9 5 . 4 2 3 8 6 6 Tactical Retreats 22 | . . 1 1 . . . 2 . . 3 1 1 . 1 . 4 5 1 2 Traps | -11 -10 -10 -10 -9 -9 -6 -6 -5 -5 -5 -5 -4 -4 -4 -3 -3 -2 -2 -2 ------- Run | Yrd Mat Min Sub Rec Scr Fac DSF Fac Upp Upp War Pro Fac DSF Res Tes Res Qua Frg Traps Triggered 11 | . 2 . 3 . . . . . . . . . . 2 . 2 1 . 1 Indirectly . | . . . . . . . . . . . . . . . . . . . . Trap Hack Attempts . | . . . . . . . . . . . . . . . . . . . . Triggered . | . . . . . . . . . . . . . . . . . . . . Disarmed . | . . . . . . . . . . . . . . . . . . . . Reprogrammed . | . . . . . . . . . . . . . . . . . . . . Reused 1 | . . . . . . . . . . . . . . . . . 1 . . Traps Extracted . | . . . . . . . . . . . . . . . . . . . . Installed 1 | . . . . . . . . . . . . . . . . . 1 . . Triggered 1 | . . . . . . . . . . . . . . . . . 1 . . Most Traps Carried 1 | . . . . . 1 1 1 1 1 1 1 1 1 1 1 1 1 . . Machines | -11 -10 -10 -10 -9 -9 -6 -6 -5 -5 -5 -5 -4 -4 -4 -3 -3 -2 -2 -2 ---------- Run | Yrd Mat Min Sub Rec Scr Fac DSF Fac Upp Upp War Pro Fac DSF Res Tes Res Qua Frg Machines Disabled 28 | . . . 1 . . . . . . . 1 . . 1 . . 7 10 8 Max in Single Turn 3 | . . . 1 . . . . . . . 1 . . 1 . . 1 2 3 Garrison Access 1 | . . . . . . . . . . . . . . . . . 1 . . Machines Repaired . | . . . . . . . . . . . . . . . . . . . . Machines Dismantled . | . . . . . . . . . . . . . . . . . . . . Machines Sabotaged . | . . . . . . . . . . . . . . . . . . . . Overloaded Fab Kills . | . . . . . . . . . . . . . . . . . . . . Hacking | -11 -10 -10 -10 -9 -9 -6 -6 -5 -5 -5 -5 -4 -4 -4 -3 -3 -2 -2 -2 --------- Run | Yrd Mat Min Sub Rec Scr Fac DSF Fac Upp Upp War Pro Fac DSF Res Tes Res Qua Frg Machines Accessed 32 | . . 1 2 . . 1 . 1 . 1 4 . 1 . . 7 5 5 4 Terminals 12 | . . . . . . 1 . 1 . . . . 1 . . 2 1 4 2 Fabricators 3 | . . . . . . . . . . . . . . . . 2 1 . . Repair Stations 1 | . . . . . . . . . . . . . . . . . . . 1 Recycling Units 2 | . . . . . . . . . . . . . . . . . 2 . . Scanalyzers 5 | . . . . . . . . . . . . . . . . 3 . 1 1 Garrison Access 1 | . . . . . . . . . . . . . . . . . 1 . . Total Hacks 62 | . . 1 5 . . 1 . 2 . 1 11 . 1 . . 10 12 9 9 Successful 34 | . . 1 5 . . 1 . . . 1 11 . 1 . . 4 5 2 3 Failed 28 | . . . . . . . . 2 . . . . . . . 6 7 7 6 Catastrophic 8 | . . . . . . . . . . . . . . . . 4 1 1 2 Database Lockouts . | . . . . . . . . . . . . . . . . . . . . Manual 19 | . . . . . . . . 2 . . . . . . . 5 7 2 3 Terminals 20 | . . . . . . 1 . 2 . . . . 1 . . 3 4 6 3 Fabricators 4 | . . . . . . . . . . . . . . . . 2 2 . . Repair Stations 2 | . . . . . . . . . . . . . . . . . . . 2 Recycling Units 5 | . . . . . . . . . . . . . . . . . 5 . . Scanalyzers 12 | . . . . . . . . . . . . . . . . 5 . 3 4 Garrison Access 1 | . . . . . . . . . . . . . . . . . 1 . . Terminal Hacks 25 | . . 1 5 . . 1 . . . 1 11 . 1 . . 1 1 2 1 Record 14 | . . . 4 . . . . . . . 10 . . . . . . . . Open Door 3 | . . 1 . . . . . . . 1 1 . . . . . . . . Open DSF 2 | . . . . . . 1 . . . . . . 1 . . . . . . Alert Level 1 | . . . . . . . . . . . . . . . . . 1 . . Unreport Threat 2 | . . . . . . . . . . . . . . . . 1 . 1 . Locate Traps 2 | . . . . . . . . . . . . . . . . . . 1 1 Proto ID Catalog 1 | . . . 1 . . . . . . . . . . . . . . . . Fabricator Hacks 1 | . . . . . . . . . . . . . . . . . 1 . . Build 1 | . . . . . . . . . . . . . . . . . 1 . . Repair Station Hacks . | . . . . . . . . . . . . . . . . . . . . Recycling Unit Hacks . | . . . . . . . . . . . . . . . . . . . . Scanalyzer 3 | . . . . . . . . . . . . . . . . 2 . . 1 Retrieve Study 3 | . . . . . . . . . . . . . . . . 2 . . 1 Garrison Access Hacks . | . . . . . . . . . . . . . . . . . . . . Unauthorized Hacks 5 | . . . . . . . . . . . . . . . . 1 3 . 1 Terminals . | . . . . . . . . . . . . . . . . . . . . Fabricators 2 | . . . . . . . . . . . . . . . . 1 1 . . Fabnet 2 | . . . . . . . . . . . . . . . . 1 1 . . Repair Stations 1 | . . . . . . . . . . . . . . . . . . . 1 Patch 1 | . . . . . . . . . . . . . . . . . . . 1 Recycling Units 1 | . . . . . . . . . . . . . . . . . 1 . . Fedlink 1 | . . . . . . . . . . . . . . . . . 1 . . Scanalyzers . | . . . . . . . . . . . . . . . . . . . . Garrison Access 1 | . . . . . . . . . . . . . . . . . 1 . . Jam 1 | . . . . . . . . . . . . . . . . . 1 . . Data Cores Recovered 1 | . 1 . . . . . . . . . . . . . . . . . . Used . | . . . . . . . . . . . . . . . . . . . . Hacking Detections 23 | . . . . . . 1 . 1 . . . . 1 . . 7 4 5 4 Full Trace Events . | . . . . . . . . . . . . . . . . . . . . Feedback Events . | . . . . . . . . . . . . . . . . . . . . Feedback Blocked . | . . . . . . . . . . . . . . . . . . . . Robot Schematics Acquired 4 | . . . . . . . . . . . . . . . . 4 . . . Robots Built . | . . . . . . . . . . . . . . . . . . . . Authchips . | . . . . . . . . . . . . . . . . . . . . Time . | . . . . . . . . . . . . . . . . . . . . Total Robot Build Rating . | . . . . . . . . . . . . . . . . . . . . Part Schematics Acquired 6 | . . . . . . . . . . . . . . . . 5 . 1 . Parts Built 1 | . . . . . . . . . . . . . . . . . 1 . . Authchips . | . . . . . . . . . . . . . . . . . . . . Time 139 | . . . . . . . . . . . . . . . . . 139 . . Total Part Build Rating 9 | . . . . . . . . . . . . . . . . . 9 . . Part Studies Acquired 3 | . . . . . . . . . . . . . . . . 2 . . 1 Parts Repaired . | . . . . . . . . . . . . . . . . . . . . Time . | . . . . . . . . . . . . . . . . . . . . Parts Recycled . | . . . . . . . . . . . . . . . . . . . . Recycled Matter . | . . . . . . . . . . . . . . . . . . . . Retrieved Matter . | . . . . . . . . . . . . . . . . . . . . Retrieved Components . | . . . . . . . . . . . . . . . . . . . . Parts Scanalyzed . | . . . . . . . . . . . . . . . . . . . . Part Schematics Acquired . | . . . . . . . . . . . . . . . . . . . . Parts Damaged . | . . . . . . . . . . . . . . . . . . . . Bothacking | -11 -10 -10 -10 -9 -9 -6 -6 -5 -5 -5 -5 -4 -4 -4 -3 -3 -2 -2 -2 ------------ Run | Yrd Mat Min Sub Rec Scr Fac DSF Fac Upp Upp War Pro Fac DSF Res Tes Res Qua Frg Used RIF Installer . | . . . . . . . . . . . . . . . . . . . . Robots Hacked 6 | . . . . . . . . . . . . . . . . . 4 . 2 Non-combat . | . . . . . . . . . . . . . . . . . . . . Combat 6 | . . . . . . . . . . . . . . . . . 4 . 2 Robot Hacks Applied . | . . . . . . . . . . . . . . . . . . . . Relay Couplers Released . | . . . . . . . . . . . . . . . . . . . . Fabnet Peak Effective % 3 | . . . . . . . . . . . . . . . . . 3 3 3 Autooverrided 6 | . . . . . . . . . . . . . . . . . 4 . 2 Robots Rewired 1 | . . . . . . . . . . . . . . . . 1 . . . Allies Hacked . | . . . . . . . . . . . . . . . . . . . . Hacks Repelled . | . . . . . . . . . . . . . . . . . . . . Allies | -11 -10 -10 -10 -9 -9 -6 -6 -5 -5 -5 -5 -4 -4 -4 -3 -3 -2 -2 -2 -------- Run | Yrd Mat Min Sub Rec Scr Fac DSF Fac Upp Upp War Pro Fac DSF Res Tes Res Qua Frg Total Allies 7 | . . . . . . . . . . . . . . . . 1 4 . 2 Largest Group 2 | . . . . . . . . . . . . . . . . 1 2 . 2 Highest-Rated Group 127 | . . . . . . . . . . . . . . . . 43 127 . 116 Highest-Rated Ally 69 | . . . . . . . . . . . . . . . . 43 69 . 58 Total Orders . | . . . . . . . . . . . . . . . . . . . . Ally Attacks 20 | . . . . . . . . . . . . . . . . 2 14 . 4 Total Damage 707 | . . . . . . . . . . . . . . . . . 547 . 160 Kills 5 | . . . . . . . . . . . . . . . . . 5 . . Allies Corrupted . | . . . . . . . . . . . . . . . . . . . . Allies Melted 1 | . . . . . . . . . . . . . . . . . . . 1 Intel | -11 -10 -10 -10 -9 -9 -6 -6 -5 -5 -5 -5 -4 -4 -4 -3 -3 -2 -2 -2 ------- Run | Yrd Mat Min Sub Rec Scr Fac DSF Fac Upp Upp War Pro Fac DSF Res Tes Res Qua Frg Active Infowar (turns) 5555 | 31 168 509 23 . . 60 73 . 122 92 . 6 3 158 111 919 1858 817 605 Terrain 595 | . . . . . . . . . . . . . . . . . 595 . . Traps 214 | . . . . . . . . . 122 92 . . . . . . . . . Seismic 864 | 31 168 509 23 . . 60 73 . . . . . . . . . . . . Cloaking 1893 | . . . . . . . . . . . . . . . . . 471 817 605 Jamming 2584 | . . . . . . . . . . . . 6 3 158 111 919 1387 . . Robot Analysis Total . | . . . . . . . . . . . . . . . . . . . . Derelict Logs Recovered 5 | . . 1 . . 2 . . . . 1 . 1 . . . . . . . Drone Launches . | . . . . . . . . . . . . . . . . . . . . Drone Recoveries . | . . . . . . . . . . . . . . . . . . . . Exploration | -11 -10 -10 -10 -9 -9 -6 -6 -5 -5 -5 -5 -4 -4 -4 -3 -3 -2 -2 -2 ------------- Run | Yrd Mat Min Sub Rec Scr Fac DSF Fac Upp Upp War Pro Fac DSF Res Tes Res Qua Frg Turns Passed 12279 | 121 168 509 1292 29 1179 63 201 141 398 783 1255 469 3 158 111 924 2476 919 1080 Spaces Moved 8315 | 74 134 331 615 58 1223 57 107 113 257 548 968 368 3 86 89 591 1624 576 493 Core 358 | 14 . . 10 58 276 . . . . . . . . . . . . . . Treads 420 | 4 . . 415 . . . . . . . . . . . . . . 1 . Legs 4431 | . . . . . . . 17 113 6 . 466 368 3 86 89 591 1624 575 493 Wheels 3072 | 56 134 331 190 . 913 57 90 . 251 548 502 . . . . . . . . Hover . | . . . . . . . . . . . . . . . . . . . . Flight 34 | . . . . . 34 . . . . . . . . . . . . . . Fastest Speed 35 | 50 95 95 50 50 35 100 100 120 115 108 108 110 110 100 96 94 95 107 95 Average Speed 108 | 89 95 95 172 50 92 100 104 120 122 112 114 113 110 107 97 96 100 108 108 Slowest Speed 260 | 160 95 95 260 50 115 100 120 120 190 130 190 180 110 112 100 100 190 250 260 Overloaded Moves . | . . . . . . . . . . . . . . . . . . . . Propulsion Burnouts . | . . . . . . . . . . . . . . . . . . . . Robots Hopped . | . . . . . . . . . . . . . . . . . . . . Potential Cave-ins . | . . . . . . . . . . . . . . . . . . . . Cave-ins Triggered . | . . . . . . . . . . . . . . . . . . . . Exploration Rate (%) 41 | 5 32 66 41 17 81 3 72 2 38 69 90 56 . 54 3 57 34 53 13 Regions Visited 19 Branch Regions 11 Pre-discovered Areas 5 | . . 1 1 . 1 . . . . 1 . 1 . . . . . . . Known Exits Taken 3 | . . . . . . 1 . . . . . . 1 . 1 . . . . Unknown Exits Taken 14 | 1 1 1 1 1 1 . . 1 1 1 1 1 . . . 1 1 1 . Scrap Searched 18 | . . 1 8 . 5 . . . 1 1 . 2 . . . . . . . Spaces Dug 130 | . . . . . . . 1 . . 12 . . . . . 13 16 3 85 Terrain Destroyed 757 | . . . 2 . . . 1 . 27 28 34 . . 12 . 39 164 163 287 Melee 4 | . . . . . . . 1 . . . . . . . . 3 . . . Projectile 143 | . . . 2 . . . . . . . 20 . . . . . 72 17 32 AOE 610 | . . . . . . . . . 27 28 14 . . 12 . 36 92 146 255 Terrain Rammed . | . . . . . . . . . . . . . . . . . . . . Walls Destroyed . | . . . . . . . . . . . . . . . . . . . . Machines Disabled . | . . . . . . . . . . . . . . . . . . . . Actions | -11 -10 -10 -10 -9 -9 -6 -6 -5 -5 -5 -5 -4 -4 -4 -3 -3 -2 -2 -2 --------- Run | Yrd Mat Min Sub Rec Scr Fac DSF Fac Upp Upp War Pro Fac DSF Res Tes Res Qua Frg Total 10547 | 99 150 504 747 57 1268 62 163 119 309 662 1101 410 2 145 111 861 2169 790 818 Wait 848 | . 2 147 39 . . . 12 . 20 54 27 12 . . 5 168 131 91 140 Move 8296 | 73 133 330 614 57 1222 56 106 112 256 547 967 367 2 85 88 590 1623 575 493 Hop . | . . . . . . . . . . . . . . . . . . . . Pick Up 197 | 2 3 5 9 . 25 1 9 4 4 9 17 . . 13 5 4 46 24 17 Fast Attach 148 | 8 . 1 7 . 6 1 5 . 5 9 10 4 . 6 1 5 53 13 14 Attach 108 | . . . 1 . 3 4 2 2 4 5 17 4 . 2 2 3 39 4 16 Detach 24 | 1 . . . . . . . . 2 3 6 . . . . 2 6 3 1 Swap 126 | 1 . 1 5 . . . 5 . 2 . 16 . . 6 2 11 41 19 17 Drop 214 | 1 . 3 17 . 12 . 7 1 1 6 25 1 . 16 5 7 71 21 20 Fire 394 | 13 12 17 52 . . . . . 2 3 15 . . 2 . 7 134 39 98 Melee 171 | . . . . . . . 16 . 13 26 1 22 . 12 3 59 19 . . Ram . | . . . . . . . . . . . . . . . . . . . . Kick 9 | . . . . . . . 1 . . . . . . . . . 5 1 2 Crush . | . . . . . . . . . . . . . . . . . . . . Escape Stasis 3 | . . . . . . . . . . . . . . 3 . . . . . Rewire 5 | . . . . . . . . . . . . . . . . 5 . . . Trap 1 | . . . . . . . . . . . . . . . . . 1 . . Miscellaneous 3 | . . . 3 . . . . . . . . . . . . . . . . Route ------- -11/Scrapyard -10/Materials -10/Mines (discovered 2 exits: [*Mat] / *Sub) -10/Subcaves (discovered 2 exits: [*Mat] / [*Rec]) -9/Recycling -9/Scraptown (discovered 2 exits: *Fac x2) -6/Factory -6/DSF -5/Factory -5/Upper Caves -5/Upper Caves (discovered 2 exits: *Fac / *War) -5/Warlord -4/Proximity Caves -4/Factory (discovered 2 exits: Res / DSF) -4/DSF -3/Research -3/Testing -2/Research (discovered 2 exits: Acc / *Qua) -2/Quarantine (discovered 2 exits: [*Sec] / *Frg) -2/Protoforge History --------- Turn | Location | Event 8 | -11/Scrapyard | Discovered new exit (range 15) 122 | -11/Scrapyard | Entered Materials 273 | -10/Materials | Discovered new exit (range 16) 290 | -10/Materials | Entered Mines 313 | -10/Mines | Build established: Mutant 332 | -10/Mines | Met a Derelict shopkeep closing up shop 385 | -10/Mines | Discovered new exit (range 5) 789 | -10/Mines | Discovered new exit (range 9) 799 | -10/Mines | Entered Subcaves 800 | -10/Subcaves | Approached by a straggling Scientist 806 | -10/Subcaves | Ambushed by Subdwellers from Twisted Machinery 1022 | -10/Subcaves | Shifting Twisted Machinery released Battle Cannon 1081 | -10/Subcaves | Visited Clippyterm 1084 | -10/Subcaves | Learned location of Extension (-4) 1084 | -10/Subcaves | Learned Factory fabricator intel 1163 | -10/Subcaves | Discovered new exit (range 11) 1304 | -10/Subcaves | Core integrity fell below 50% 1316 | -10/Subcaves | A swath of the cavern ceiling suddenly collapsed 1403 | -10/Subcaves | Shifting Twisted Machinery released Riot Gun 1479 | -10/Subcaves | Build established: Subdweller-Mutant 1810 | -10/Subcaves | Visited 4L-MR0's lab 1849 | -10/Subcaves | Found Tower Shield 2044 | -10/Subcaves | Discovered new exit (range 15) 2091 | -10/Subcaves | Entered Recycling 2092 | -9/Recycling | Met a Zionite searching for Scraptown 2108 | -9/Recycling | Scanned before Scraplab entrance 2115 | -9/Recycling | Entered Scraplab 2119 | -9/Recycling | Discovered new exit (range 3) 2120 | -9/Recycling | Entered Scraptown 2120 | -9/Scraptown | System corruption cleaned by C-Scrubber 2156 | -9/Scraptown | Visited UFD Registry 2156 | -9/Scraptown | Registered with UFD as "Pipebox" 2219 | -9/Scraptown | Scanned Subdweller tech in exchange for log data 2221 | -9/Scraptown | Learned location of Armory (-4) 2221 | -9/Scraptown | Learned Factory emergency access door positions 2226 | -9/Scraptown | Discovered new exit (range 11) 2242 | -9/Scraptown | Guru changed UFD alias to "Hardcell" 2271 | -9/Scraptown | Visited Supply Room 2392 | -9/Scraptown | Build established: Mutant 2598 | -9/Scraptown | Visited Cyclists 2606 | -9/Scraptown | Entered Cyclist Reading Room 2653 | -9/Scraptown | Visited Curators Association 2684 | -9/Scraptown | Visited DA-N13 Charitable Foundation 2693 | -9/Scraptown | Found DCF Scrap (30 items) 2771 | -9/Scraptown | Visited LU-1G1's Boring Crew 2786 | -9/Scraptown | Visited Supply Room 2826 | -9/Scraptown | Visited Scrapoid Research Area 2836 | -9/Scraptown | Visited Science Guys 2918 | -9/Scraptown | Visited A0-MCA Data Center 2925 | -9/Scraptown | Given a C rating by A0-MCA 2932 | -9/Scraptown | Found A0-MCA's Component Scanner 3233 | -9/Scraptown | Met Optimus 3233 | -9/Scraptown | Accepted into 0bPrime 3296 | -9/Scraptown | Discovered new exit (range 3) 3299 | -9/Scraptown | Entered Factory 3299 | -6/Factory | Evolved 8 slots: Power x1, Propulsion x2, Utility x5 3301 | -6/Factory | Loaded intel: 6 fabricator locations 3362 | -6/Factory | Identified exit to DSF 3362 | -6/Factory | Entered DSF 3392 | -6/DSF | Additional patrols routed to DSF 3541 | -6/DSF | Discovered new exit (range 16) 3555 | -6/DSF | Lost 3 parts (1p2n) 3563 | -6/DSF | Entered Factory 3563 | -5/Factory | Evolved 2 slots: Propulsion x1, Utility x1 3589 | -5/Factory | Discovered new exit (range 7) 3704 | -5/Factory | Entered Upper Caves 3836 | -5/Upper Caves | Build established: Scavenger-Gladiator 3905 | -5/Upper Caves | Encountered a Warlord checkpoint 3981 | -5/Upper Caves | Lost 3 allies 3989 | -5/Upper Caves | Lost 4 parts (2n2u) 4005 | -5/Upper Caves | Attracted the attention of an 0b10 checkpoint 4094 | -5/Upper Caves | Discovered new exit (range 7) 4102 | -5/Upper Caves | Entered another Upper Caves area 4158 | -5/Upper Caves | Attracted the attention of an 0b10 checkpoint 4177 | -5/Upper Caves | System corruption reached 10% 4206 | -5/Upper Caves | Discovered new exit (range 5) 4255 | -5/Upper Caves | Lost 9 parts (2p3n4u) 4364 | -5/Upper Caves | Lost 3 parts (1n1u1w) 4534 | -5/Upper Caves | Build established: Gladiator 4627 | -5/Upper Caves | Encountered a Warlord checkpoint 4844 | -5/Upper Caves | Discovered new exit (range 15) 4873 | -5/Upper Caves | Build established: Scavenger-Gladiator 4885 | -5/Upper Caves | Entered Warlord 4921 | -5/Warlord | System corruption cleaned by Quarantine Array 5255 | -5/Warlord | Build established: Scavenger-Mutant 5257 | -5/Warlord | Rebuked by Warlord 5282 | -5/Warlord | Warlord's base attacked by MAIN.C 5331 | -5/Warlord | Learned Armory stockpile data 5331 | -5/Warlord | Learned Research stockpile data 5331 | -5/Warlord | Learned 4 Research zone layouts 5331 | -5/Warlord | Learned 4 Access zone layouts 5331 | -5/Warlord | Learned Armory fabricator intel 5331 | -5/Warlord | Learned Armory repair station intel 5331 | -5/Warlord | Learned Armory recycling unit intel 5331 | -5/Warlord | Learned Armory garrison access intel 5632 | -5/Warlord | Warlord forces counterattacked 5634 | -5/Warlord | Found Prototype Piercing Weapon 5634 | -5/Warlord | Identified Vortex Lance 5639 | -5/Warlord | Found Prototype Energy Gun 5639 | -5/Warlord | Identified Vortex Rail 5643 | -5/Warlord | Found Vortex Rail 5653 | -5/Warlord | Found Vortex Lance 5783 | -5/Warlord | Spotted Striker 5838 | -5/Warlord | Lost 13 allies 5907 | -5/Warlord | Spotted B-86 Titan 5936 | -5/Warlord | Destroyed B-86 Titan 5957 | -5/Warlord | Warlord base infiltrated, sounded retreat 5963 | -5/Warlord | Spotted Striker 6012 | -5/Warlord | Lost 3 allies 6015 | -5/Warlord | Lost 12 parts (2p5n4u1w) 6025 | -5/Warlord | Found Vortex Chain Reactor 6036 | -5/Warlord | Found Exp. Cloaking Device 6047 | -5/Warlord | Found System Purifier 6062 | -5/Warlord | P-70 Sage assimilated allied SC-BGK(Y) 6062 | -5/Warlord | Spotted Striker 6065 | -5/Warlord | P-70 Sage assimilated allied 5Q-EBC(M) 6105 | -5/Warlord | Spotted B-86 Titan 6108 | -5/Warlord | Spotted B-75 Beast 6126 | -5/Warlord | Discovered new exit (range 14) 6140 | -5/Warlord | Entered Proximity Caves 6142 | -4/Proximity Caves | Lost 5 allies 6159 | -4/Proximity Caves | Spotted B-86 Titan 6179 | -4/Proximity Caves | Destroyed B-86 Titan 6209 | -4/Proximity Caves | Lost 3 parts (1n1u1w) 6421 | -4/Proximity Caves | Attracted the attention of an 0b10 checkpoint 6566 | -4/Proximity Caves | Learned location of Quarantine (-2) 6571 | -4/Proximity Caves | Discovered new exit (range 16) 6609 | -4/Proximity Caves | Entered Factory 6609 | -4/Factory | Evolved 2 slots: Utility x2 6610 | -4/Factory | Identified exit to Research 6612 | -4/Factory | Identified exit to DSF 6612 | -4/Factory | Entered DSF 6638 | -4/DSF | Additional patrols routed to DSF 6659 | -4/DSF | Discovered exit to Research (range 16) 6770 | -4/DSF | Entered Research 6770 | -3/Research | Evolved 2 slots: Propulsion x1, Weapon x1 6771 | -3/Research | Identified exit to Testing 6881 | -3/Research | Entered Testing 7145 | -3/Testing | Build established: Scavenger-Gladiator 7150 | -3/Testing | Spotted PY-10Z4CBR3KH 7549 | -3/Testing | System corruption reached 10% 7601 | -3/Testing | P-80 Master assimilated allied Analyst 8a 7785 | -3/Testing | Discovered new exit (range 12) 7805 | -3/Testing | Entered Research 7805 | -2/Research | Evolved 2 slots: Utility x1, Weapon x1 7806 | -2/Research | Identified exit to Access 7818 | -2/Research | Found Exp. Thermal Shield 7980 | -2/Research | Fabricated Centrium Leg (x1) 8084 | -2/Research | Loaded intel: 5 recycling unit locations 8162 | -2/Research | Cargo convoy interrupted 8166 | -2/Research | Spotted Striker 8173 | -2/Research | Attached CPS modules to Striker. 8249 | -2/Research | Destroyed Striker 8261 | -2/Research | Local machine network offline 8555 | -2/Research | First assault squad dispatched 8635 | -2/Research | Build established: Scavenger-Gunner 9172 | -2/Research | System corruption reached 10% 9268 | -2/Research | Lost 9 parts (1p2n5u1w) 9353 | -2/Research | Attached Tower Shield, gained temporary slots: Power, Propulsion x2 9442 | -2/Research | Lost 8 parts (2p3u3w) 9566 | -2/Research | Attached CPS modules to H-88 Terminator. 9609 | -2/Research | System corruption reached 30% 9679 | -2/Research | Lost 15 parts (1p4n6u4w) 9841 | -2/Research | Found Tactical Quantum Warhead 9843 | -2/Research | Found Tactical Quantum Warhead 10084 | -2/Research | Found Prototype Launcher 10084 | -2/Research | Identified Gui. Micro-nuke Launcher 10243 | -2/Research | Discovered new exit (range 16) 10281 | -2/Research | Entered Quarantine 10490 | -2/Quarantine | Found Prototype Device 10490 | -2/Quarantine | Identified Exp. EM Disruption Field 10561 | -2/Quarantine | Build established: Scavenger-Tank 10679 | -2/Quarantine | Found Alien Artifact 10781 | -2/Quarantine | First assault squad dispatched 10794 | -2/Quarantine | Cryocooling Duct disabled 10794 | -2/Quarantine | Scanned by Researcher 10809 | -2/Quarantine | Ambient heat levels rising (+20) 10809 | -2/Quarantine | Non-combat units ordered to evacuate 10898 | -2/Quarantine | Core integrity fell below 50% 10917 | -2/Quarantine | Build established: Scavenger-Gunner 10944 | -2/Quarantine | Lost 5 parts (2p1n1u1w) 10947 | -2/Quarantine | Destroyed 7 combat bots 11044 | -2/Quarantine | Cryocooling Duct disabled 11046 | -2/Quarantine | Cryocooling Duct disabled 11050 | -2/Quarantine | Cryocooling Duct disabled 11059 | -2/Quarantine | Ambient heat levels rising (+20) 11059 | -2/Quarantine | Combat units ordered to evacuate 11061 | -2/Quarantine | Ambient heat levels rising (+20) 11065 | -2/Quarantine | Ambient heat levels rising (+20) 11123 | -2/Quarantine | Spotted Fortress 11159 | -2/Quarantine | Quarantine Guard activated 11196 | -2/Quarantine | Discovered new exit (range 6) 11196 | -2/Quarantine | Discovered new exit (range 5) 11200 | -2/Quarantine | Entered Protoforge 11243 | -2/Protoforge | Superfortress began startup sequence 11267 | -2/Protoforge | Spotted Hotshot 11267 | -2/Protoforge | Spotted Hotshot 11279 | -2/Protoforge | Spotted Hotshot 11291 | -2/Protoforge | Destroyed Hotshot 11300 | -2/Protoforge | Destroyed Hotshot 11320 | -2/Protoforge | Destroyed Hotshot 11464 | -2/Protoforge | Spotted Hotshot 11464 | -2/Protoforge | Spotted Hotshot 11465 | -2/Protoforge | Spotted Hotshot 11493 | -2/Protoforge | Destroyed Hotshot 11511 | -2/Protoforge | Destroyed Hotshot 11536 | -2/Protoforge | Destroyed Hotshot 11546 | -2/Protoforge | Lost 5 parts (2n3u) 11654 | -2/Protoforge | Spotted AP7-3 11663 | -2/Protoforge | Spotted AP7-3 11981 | -2/Protoforge | Found Exp. Thermal Shield 12187 | -2/Protoforge | Destroyed AP7-3 12200 | -2/Protoforge | First assault squad dispatched 12210 | -2/Protoforge | Core integrity fell below 20% 12218 | -2/Protoforge | Destroyed AP7-3 12280 | -2/Protoforge | Destroyed by P-80 Master with Gamma Rifle Last Messages --------------- 12254_ Protoware Simulator disabled. 12254_ Destroyed Lgt. Angular Momentum Engine. 12254_ M-36 Artificer destroyed. 12254_ K-01 Serf destroyed. 12254_ U-05 Engineer destroyed. 12255_ The unstable cave ceiling collapses. 12257_ FXEDGBG1YKTGRDDC//Z1A 12257_ Adv. Heat Sink destroyed. 12257_ Exp. Thermal Shield destroyed. 12257_ P-80 Master destroyed. 12259_ The unstable cave ceiling collapses. 12263_ Myomer Leg destroyed. 12264_ The unstable cave ceiling collapses. 12266_ Adv. Thermal Generator destroyed. 12266_ Tactical Quantum Warhead destroyed. 12267_ N-04 Retriever collects Corrupted Wheel. 12267_ Acquired Unknown Energy Gun. 12267_ Identified Hvy. Laser. 12269_ The unstable cave ceiling collapses. 12274_ System corrupted: Component data lost. Map ----- +----------------------------------------------------+ | #????????# #??????????????????????? | | #????????# #??????????????????????? | | #????????# #??????????????????????? | | """" """" #????????# [ # ???????????????????? | | """" """" #???###??# # ?????????????????? | | """" """" ########## % # ## ## ???????????? | | """" """" ??????????? | | ??????????? | | ??????????? | | ###################+## # # ## ???????????? | | # #??????# # #????????????? | | # """" #??????# # # #????????????? | | + """" #??????# #????????????? | | # """" #??????# ##???????????? | | # """" ???????# #???????????? | | #? ???????# #???????????? | | ###?######??????# # #???????????? | | ????????????????# # #????????????? | | ????????????????# ## #????????????? | | ????????????????###### # ##?????????? | | ???????????????#### # #?????????? | | ???????????????# """ #?????????? | | ???????????????# p """ #?????????? | | ???????????????##" " # """ #?????????? | | ????????????????#"" #?????????? | | ????????????????#"" @ #?????????? | | ????????????????#" " " #?????????? | | ????????????????# ""R"" #?????????? | | ????????????????# """"" #?????????? | | ????????????????### # # ###?????????? | | ????????????? ????## # ## ##???????????? | | ????????????? # ##?###????????????? | | ????????????? + % #?????????????????? | | ??????????????????# #?????????????????? | | ??????????????????# ## % #?????????????????? | | ??????????????????# ##### ##????????????????? | | ??????????????????# # #????????????????? | | ??????????????????# ?# #????????????????? | | ??????????????????# ?# #????????????????? | | ??????????????????? ??# #????????????????? | | ??????????????????????# #????????????????? | | ??????????????????????# #????????????????? | | ??????????????????????# % #????????????????? | | ??????????????????????# #????????????????? | | ??????????????????????######"####????????????????? | | ???????????????????????????#%#???????????????????? | | ???????????????????????????#%#???????????????????? | | ???????????????????????????# ##??????????????????? | | ????????????###+#########?##%"#??????????????????? | | ????????????# = ###"%##??????????????????? | +----------------------------------------------------+ Best States ------------- Heat Dissipation 182 Coolant Potential 120 Energy Generation 70 Energy Capacity 700 Matter Stores 500 Matter Capacity 500 Sight Range 16 Terrain Scan Range 24 Terrain Scan Density 10 Jamming Range 16 Cloak Strength 4 Power Amplification 30 Armor Coverage 2000 Resistance: KI 30 Resistance: TH 30 Resistance: EM 25 Core Shielding 30 Weapon Shielding 90 Melee Speed Boost 40 Phase Shifting 15 Evasion (%) 84 Targeting Accuracy 16 Melee Accuracy 24 Target Analysis 8 Core Analysis 6 Armor Integrity Analysis 30 Recoil Reduction 6 Item Schematics ----------------- Lgt. Neutrino Core | -3/Testing | Archive Adv. Micro-nuke Launcher | -3/Testing | Archive Shock Maul | -3/Testing | Archive Exp. Terrain Scan Processor | -3/Testing | Archive Adv. EM Disruption Field | -3/Testing | Archive Cld. Antigrav System | -2/Quarantine | Archive Robot Schematics ------------------ M-36 Artificer | -3/Testing | Archive E-15 Imp | -3/Testing | Archive L-61 Swordsman | -3/Testing | Archive W-44 Eye | -3/Testing | Archive Fabricated ------------ Centrium Leg | x1 | -2/Research | Preloaded Repaired ---------- Nothing Studied --------- Biometal Leg | -3/Testing | Hacked Thunder Leg | -3/Testing | Hacked Centrium Leg | -2/Protoforge | Hacked Alien Tech Used ----------------- None Achievements -------------- None Challenges ------------ None Game ------ Seed ChromionHybridFrame Manual? 0 Play Time 02:18:56 Cumulative 411.8 hours Start 2025.11.18 @ 01:48:47 End 2025.11.18 @ 04:13:14 Sessions 1 Manual Loads 0 Difficulty Rogue Special Mode None Game No. 380 Rogue 380 Adventurer 0 Explorer 0 Win Type - Total 3 Types 2/1/0/0/0/0/0/0/0/0 Lore% 85 Gallery% 84 Achievement% 63 Wizard Run 0 Options --------- Layout 1 ASCII 0 Keyboard 0 Movement Numpad Keybinds 0 Fullscreen 1 Font 24/Smallcaps Map View 50x35 Zoom Use 0% Tactical HUD 1 Map Filters NONE Filters NONE Steam 1 RUN: 1a3fcafd-9880-47c0-a6a8-c57176c61f21